bitfinex-derivatives/quotes_BTCF0:USTF0_20240817
["timestamp","ask_amount","ask_price","bid_price","bid_amount"]
[1723855878455,0.084544,59122.0,59118.0,0.3608]
[1723855878645,0.0486,59121.0,59118.0,0.3608]
[1723855878842,0.423146,59121.0,59118.0,0.3608]
[1723855879147,0.49042395,59121.0,59118.0,0.3608]
[1723855879855,0.084547,59120.0,59114.0,0.084555]
[1723855880059,0.084548,59119.0,59114.0,0.084555]
[1723855880263,0.294548,59119.0,59114.0,0.084555]
[1723855881657,0.342148,59119.0,59114.0,0.084555]
[1723855882448,0.342148,59119.0,59114.0,0.085555]
[1723855883584,0.08455,59118.0,59114.0,0.085555]
[1723855884061,0.28455,59118.0,59114.0,0.085555]
[1723855889163,0.084551,59117.0,59114.0,0.001]
[1723855889368,0.454551,59117.0,59114.0,0.001]
[1723855890966,0.454551,59117.0,59114.0,0.002]
[1723855891367,0.454551,59117.0,59114.0,0.3628]
[1723855892972,0.454551,59117.0,59114.0,0.002]
[1723855893167,0.454551,59117.0,59114.0,0.3628]
[1723855893973,0.37,59117.0,59116.0,0.084552]
[1723855894269,0.37,59117.0,59116.0,0.234552]
[1723855894473,0.37,59117.0,59116.0,0.3219504]
[1723855895179,0.372,59117.0,59116.0,0.3219504]
[1723855895478,0.372,59117.0,59116.0,0.27176931]
[1723855895874,0.372,59117.0,59116.0,0.30898616]
[1723855896191,0.372,59117.0,59116.0,0.27176908]
[1723855896474,0.372,59117.0,59116.0,0.30898622]
[1723855897073,0.372,59117.0,59116.0,0.27176908]
[1723855897579,0.372,59117.0,59116.0,0.3089866]
[1723855897969,0.372,59117.0,59116.0,0.234552]
[1723855898165,0.372,59117.0,59116.0,0.084552]
[1723855898372,0.372,59117.0,59116.0,0.13464926]
[1723855898672,0.372,59117.0,59116.0,0.13467083]
[1723855898873,0.372,59117.0,59116.0,0.084552]
[1723855901276,0.372,59117.0,59116.0,0.15151856]
[1723855901883,0.372,59117.0,59116.0,0.084552]
[1723855902088,0.372,59117.0,59116.0,0.15151856]
[1723855902382,0.372,59117.0,59116.0,0.084552]
[1723855904102,0.372,59117.0,59116.0,0.52904189]
[1723855904283,0.372,59117.0,59116.0,0.57418172]
[1723855905687,0.372,59117.0,59116.0,0.65802748]
[1723855906286,0.372,59117.0,59116.0,0.5741831]
[1723855910495,0.372,59117.0,59116.0,0.57417971]
[1723855911201,0.372,59117.0,59116.0,0.61139884]
[1723855911993,0.372,59117.0,59116.0,0.64861766]
[1723855912192,0.372,59117.0,59116.0,0.61139884]
[1723855912395,0.372,59117.0,59116.0,0.64861993]
[1723855912590,0.372,59117.0,59116.0,0.64861831]
[1723855914503,0.372,59117.0,59116.0,0.64861781]
[1723855915495,0.32970566,59117.0,59116.0,0.64861781]
[1723855916403,0.32970566,59117.0,59116.0,0.64794557]
[1723855916591,0.32970566,59117.0,59116.0,0.51911786]
[1723855917003,0.32970566,59117.0,59116.0,0.15831786]
[1723855917299,0.32970566,59117.0,59116.0,0.28715407]
[1723855918496,0.32970566,59117.0,59116.0,0.15831786]
[1723855918801,0.32970566,59117.0,59116.0,0.1288359]
[1723855918999,0.32970566,59117.0,59116.0,0.2032765]
[1723855919302,0.32970566,59117.0,59116.0,0.26756568]
[1723855919708,0.32970566,59117.0,59116.0,0.28532764]
[1723855921609,0.32970566,59117.0,59116.0,0.28532118]
[1723855921799,0.32970566,59117.0,59116.0,0.2853122]
[1723855922201,0.32970566,59117.0,59116.0,0.3698642]
[1723855922810,0.32970566,59117.0,59116.0,0.36986388]
[1723855923403,0.32970566,59117.0,59116.0,0.73066388]
[1723855923905,0.32970566,59117.0,59116.0,0.93204891]
[1723855924506,0.002,59117.0,59116.0,0.93204891]
[1723855924700,0.0468,59130.0,59129.0,0.084534]
[1723855924897,0.0468,59130.0,59129.0,0.97451506]
[1723855925107,0.03663113,59130.0,59129.0,1.79800588]
[1723855925295,0.03663113,59130.0,59129.0,1.39800588]
[1723855925501,0.03663113,59130.0,59129.0,1.29649097]
[1723855925700,0.03663113,59130.0,59129.0,1.48174739]
[1723855926021,0.05063113,59130.0,59129.0,0.79660995]
[1723855926197,0.05063113,59130.0,59129.0,0.51126239]
[1723855926412,0.05063113,59130.0,59129.0,0.51226239]
[1723855926413,0.07063113,59130.0,59129.0,0.51226239]
[1723855926801,0.06063113,59130.0,59129.0,0.51226239]
[1723855927107,0.06063113,59130.0,59129.0,0.50050087]
[1723855927108,0.07063113,59130.0,59129.0,0.50050087]
[1723855927306,0.06063113,59130.0,59129.0,0.43622867]
[1723855927507,0.06063113,59130.0,59129.0,0.58503741]
[1723855928308,0.06063113,59130.0,59129.0,0.52076267]
[1723855929536,0.06063113,59130.0,59129.0,0.446334]
[1723855929808,0.06063113,59130.0,59129.0,0.52075824]
[1723855930307,0.06063113,59130.0,59129.0,1.75303304]
[1723855930308,0.024,59130.0,59129.0,1.75303304]
[1723855930504,0.024,59130.0,59129.0,2.0566969]
[1723855930705,0.00025368,59135.0,59134.0,0.084527]
[1723855930906,0.00025368,59135.0,59134.0,0.83156886]
[1723855931304,0.00025368,59135.0,59134.0,0.81382084]
[1723855931507,0.00025368,59135.0,59134.0,0.81376665]
[1723855931699,0.00025368,59135.0,59134.0,0.81374823]
[1723855931902,0.01425368,59135.0,59134.0,0.81374823]
[1723855932212,0.01425368,59135.0,59134.0,0.7127758]
[1723855932719,0.30468617,59152.0,59134.0,0.7127758]
[1723855932720,0.06727795,59158.0,59152.0,0.0845]
[1723855933017,0.2,59158.0,59155.0,0.3608]
[1723855933312,0.095,59157.0,59155.0,0.3608]
[1723855934011,0.305,59157.0,59155.0,0.3608]
[1723855934315,0.0465,59156.0,59155.0,0.3608]
[1723855934512,0.4465,59156.0,59155.0,0.3608]
[1723855934708,0.4465,59156.0,59152.0,0.001]
[1723855934709,0.3608,59155.0,59152.0,0.001]
[1723855934911,0.084501,59152.0,59150.0,0.00025368]
[1723855935103,0.06728463,59154.0,59152.0,0.084501]
[1723855935304,0.04738,59156.0,59154.0,0.084498]
[1723855935511,0.0465,59156.0,59154.0,0.084498]
[1723855935708,0.0465,59156.0,59155.0,0.001]
[1723855936508,0.0475,59156.0,59154.0,0.085498]
[1723855937311,0.0475,59156.0,59155.0,0.001]
[1723855937312,0.0465,59156.0,59155.0,0.001]
[1723855937844,0.1565,59156.0,59155.0,0.001]
[1723855938708,0.1565,59156.0,59155.0,0.002]
[1723855938905,0.00025368,59162.0,59155.0,0.002]
[1723855939110,0.0458,59161.0,59158.0,0.3608]
[1723855939817,0.0458,59161.0,59160.0,0.084489]
[1723855940008,0.1558,59161.0,59156.0,0.0117398]
[1723855940205,0.1558,59161.0,59155.0,0.001]
[1723855940206,0.001,59156.0,59155.0,0.001]
[1723855940715,0.191,59156.0,59155.0,0.001]
[1723855941014,0.19,59156.0,59152.0,0.01182832]
[1723855941213,0.19,59156.0,59150.0,0.00025368]
[1723855941611,0.274495,59156.0,59155.0,0.001]
[1723855941813,0.001,59161.0,59155.0,0.001]
[1723855942014,0.231,59161.0,59155.0,0.001]
[1723855942216,0.2788,59161.0,59155.0,0.001]
[1723855942420,0.2788,59161.0,59155.0,0.085497]
[1723855942804,0.2778,59161.0,59155.0,0.085497]
[1723855943011,0.001,59156.0,59155.0,0.086497]
[1723855943318,0.201,59156.0,59155.0,0.086497]
[1723855943517,0.201,59156.0,59155.0,0.002]
[1723855943720,0.201,59156.0,59155.0,0.001]
[1723855943911,0.2497,59156.0,59155.0,0.001]
[1723855944128,0.2487,59156.0,59150.0,0.0118672]
[1723855944321,0.2487,59156.0,59155.0,0.002]
[1723855944520,0.199,59156.0,59155.0,0.607297]
[1723855944820,0.199,59156.0,59155.0,0.447297]
[1723855945504,0.199,59156.0,59155.0,0.446297]
[1723855945917,0.001,59161.0,59160.0,0.084489]
[1723855946219,0.00025368,59162.0,59160.0,0.585289]
[1723855946608,0.00025368,59162.0,59160.0,0.445289]
[1723855947218,0.001,59161.0,59160.0,0.446289]
[1723855947921,0.00125368,59162.0,59160.0,0.447289]
[1723855950217,0.001,59161.0,59160.0,0.447289]
[1723855950414,0.001,59161.0,59160.0,0.002]
[1723855950415,0.231,59161.0,59160.0,0.002]
[1723855951147,0.23,59161.0,59160.0,0.08649]
[1723855951326,0.00125368,59162.0,59161.0,0.084488]
[1723855952821,0.00025368,59162.0,59161.0,0.084488]
[1723855953123,0.00025368,59162.0,59161.0,0.244488]
[1723855953312,0.00025368,59162.0,59161.0,0.752568]
[1723855953517,0.00025368,59162.0,59161.0,0.245488]
[1723855953718,0.00125368,59162.0,59161.0,0.246488]
[1723855953929,0.00125368,59162.0,59161.0,0.607288]
[1723855954120,0.00125368,59162.0,59161.0,1.114368]
[1723855954823,0.00125368,59162.0,59161.0,0.607288]
[1723855955017,0.00125368,59162.0,59161.0,1.114368]
[1723855955224,0.00125368,59162.0,59161.0,0.61903939]
[1723855955928,0.00125368,59162.0,59161.0,0.447288]
[1723855956120,0.00125368,59162.0,59161.0,0.086488]
[1723855956521,0.20125368,59162.0,59161.0,0.086488]
[1723855959222,0.20125368,59162.0,59161.0,0.13651276]
[1723855959728,0.20125368,59162.0,59161.0,0.086488]
[1723855959927,0.20125368,59162.0,59161.0,0.13651269]
[1723855960224,0.20125368,59162.0,59161.0,0.086488]
[1723855960531,0.20125368,59162.0,59161.0,0.002]
[1723855962853,0.20125368,59162.0,59161.0,0.05207319]
[1723855963134,0.20125368,59162.0,59161.0,0.05210555]
[1723855964226,0.20125368,59162.0,59161.0,0.002]
[1723855964924,0.20125368,59162.0,59161.0,0.05211509]
[1723855965125,0.20125368,59162.0,59161.0,0.002]
[1723855965826,0.20125368,59162.0,59161.0,0.06881768]
[1723855966025,0.15899079,59162.0,59161.0,0.086488]
[1723855970530,0.15899079,59162.0,59161.0,0.447288]
[1723855974542,0.15899079,59162.0,59161.0,0.48447992]
[1723855974847,0.15899079,59162.0,59161.0,0.447288]
[1723855975045,0.15899079,59162.0,59161.0,0.3628]
[1723855975339,0.15899079,59162.0,59161.0,0.002]
[1723855975530,0.15899079,59162.0,59161.0,0.39999204]
[1723855976037,0.15899079,59162.0,59161.0,0.43718396]
[1723855977541,0.24347779,59162.0,59161.0,0.43718396]
[1723855977745,0.24347779,59162.0,59161.0,0.57718396]
[1723855977946,0.24347779,59162.0,59161.0,0.66070606]
[1723855978342,0.24347779,59162.0,59161.0,0.57718396]
[1723855979345,0.24347779,59162.0,59161.0,0.53999192]
[1723855979535,0.24347779,59162.0,59161.0,0.57718439]
[1723855980539,0.15899079,59162.0,59161.0,0.67167239]
[1723855981038,0.15899079,59162.0,59161.0,0.75519449]
[1723855981239,0.15899079,59162.0,59161.0,0.88392632]
[1723855981442,0.15899079,59162.0,59161.0,0.86464318]
[1723855981750,0.15899079,59162.0,59161.0,0.94827618]
[1723855982052,0.15899079,59162.0,59161.0,0.86464318]
[1723855982448,0.15899079,59162.0,59161.0,0.88235696]
[1723855986039,0.15899079,59162.0,59161.0,0.98258349]
[1723855986239,0.15899079,59162.0,59161.0,0.82744536]
[1723855986435,0.15899079,59162.0,59161.0,0.88234669]
[1723855987144,0.09982654,59162.0,59161.0,2.07376937]
[1723855987447,0.09982654,59162.0,59161.0,1.67376937]
[1723855987643,0.09982654,59162.0,59161.0,0.83259477]
[1723855987839,0.09982654,59162.0,59161.0,0.73234669]
[1723855988343,0.09982654,59162.0,59161.0,0.73134669]
[1723855988648,0.09982654,59162.0,59161.0,0.93333814]
[1723855988843,0.09982654,59162.0,59161.0,0.83309006]
[1723855989042,0.09982654,59162.0,59161.0,0.93333233]
[1723855990247,0.09982654,59162.0,59161.0,0.67624945]
[1723855990442,0.09982654,59162.0,59161.0,0.93332864]
[1723855990940,0.09982654,59162.0,59161.0,2.00040864]
[1723855991843,0.09982654,59162.0,59161.0,1.90016637]
[1723855992451,0.00025368,59167.0,59166.0,0.084481]
[1723855992647,0.01025368,59167.0,59166.0,0.76160061]
[1723855994172,0.01025368,59167.0,59166.0,0.606281]
[1723855994348,0.01025368,59167.0,59166.0,0.7635971]
[1723855994545,0.01025368,59167.0,59166.0,0.6035971]
[1723855995345,0.01025368,59167.0,59166.0,0.0763742]
[1723855996343,0.06088283,59167.0,59166.0,0.12651125]
[1723855996547,0.06088283,59167.0,59166.0,0.0763742]
[1723855996749,0.01025368,59167.0,59166.0,0.0763742]
[1723855998261,0.01025368,59167.0,59166.0,0.03919145]
[1723855998554,0.09473268,59167.0,59166.0,0.0763829]
[1723855998759,0.09473268,59167.0,59166.0,0.03919122]
[1723855998955,0.09473268,59167.0,59166.0,0.74849464]
[1723855998956,0.00025368,59167.0,59166.0,0.74849464]
[1723855999150,8.9e-07,59179.0,59166.0,2.15343562]
[1723855999355,0.06728463,59184.0,59183.0,0.084457]
[1723855999555,0.35,59184.0,59183.0,0.2089219]
[1723855999756,0.35,59184.0,59183.0,0.51961798]
[1723856000061,0.35,59184.0,59183.0,0.20891947]
[1723856000255,0.35,59184.0,59183.0,0.56969734]
[1723856001457,0.35,59184.0,59183.0,0.52061798]
[1723856001661,0.35,59184.0,59183.0,0.15981798]
[1723856002259,0.35,59184.0,59183.0,0.16081874]
[1723856002457,0.35,59184.0,59183.0,0.086457]
[1723856003859,0.35,59184.0,59183.0,0.002]
[1723856004853,1.25688,59184.0,59178.0,0.08471747]
[1723856005053,0.35,59184.0,59179.0,0.03718326]
[1723856005256,0.35,59184.0,59178.0,0.08471747]
[1723856005456,0.434456,59184.0,59179.0,0.1216447]
[1723856005659,0.434456,59184.0,59178.0,0.00025347]
[1723856005660,0.434456,59184.0,59180.0,0.084461]
[1723856007063,0.435456,59184.0,59180.0,0.085461]
[1723856007661,0.06739502,59195.0,59183.0,0.3608]
[1723856007863,0.3608,59206.0,59195.0,0.08444]
[1723856007864,0.0466,59196.0,59195.0,0.08444]
[1723856008062,0.0466,59196.0,59195.0,0.12162193]
[1723856009062,0.0476,59196.0,59195.0,0.12262193]
[1723856009261,0.06564849,59220.0,59216.0,0.08441]
[1723856009577,0.01179217,59235.0,59219.0,0.3608]
[1723856009865,0.5708,59232.0,59224.0,0.3608]
[1723856010092,0.5708,59232.0,59219.0,0.3608]
[1723856010270,0.3608,59232.0,59219.0,0.3608]
[1723856010462,0.00016885,59231.0,59220.0,0.00025347]
[1723856010669,0.00016885,59231.0,59225.0,0.3608]
[1723856011057,0.00016885,59231.0,59227.0,0.084393]
[1723856011678,0.00016885,59231.0,59225.0,0.3608]
[1723856011868,0.36096885,59231.0,59225.0,0.3608]
[1723856012259,0.36096885,59231.0,59227.0,0.001]
[1723856012260,0.44535785,59231.0,59227.0,0.001]
[1723856012465,0.36096885,59231.0,59227.0,0.001]
[1723856012662,0.36096885,59231.0,59230.0,0.2927]
[1723856013470,0.36096885,59231.0,59225.0,0.6555]
[1723856013967,0.36096885,59231.0,59228.0,0.084392]
[1723856014370,0.36096885,59231.0,59230.0,0.001]
[1723856017477,0.36096885,59231.0,59230.0,0.002]
[1723856019674,0.69096885,59231.0,59230.0,0.002]
[1723856021472,0.69096885,59231.0,59230.0,0.001]
[1723856021674,0.33016885,59231.0,59230.0,0.002]
[1723856024876,0.33016885,59231.0,59230.0,0.08639]
[1723856027674,0.33016885,59231.0,59230.0,0.002]
[1723856027880,0.0844,59223.0,59220.0,0.00025347]
[1723856028090,0.3608,59221.0,59220.0,0.08465747]
[1723856028270,0.7108,59221.0,59220.0,0.08465747]
[1723856029368,0.7108,59221.0,59220.0,0.00125347]
[1723856029580,0.7108,59221.0,59220.0,0.00225347]
[1723856030371,0.351,59221.0,59220.0,0.08665747]
[1723856030583,0.351,59221.0,59220.0,1.40779725]
[1723856030584,0.001,59221.0,59220.0,1.40779725]
[1723856030772,0.001,59221.0,59220.0,1.15325747]
[1723856031176,0.001,59221.0,59220.0,1.40779725]
[1723856031377,0.001,59221.0,59220.0,1.23766147]
[1723856031687,0.00016885,59231.0,59230.0,0.08439]
[1723856031876,0.00016885,59231.0,59230.0,0.44519]
[1723856033181,0.00116885,59231.0,59230.0,0.44619]
[1723856033681,0.00216885,59231.0,59230.0,0.44719]
[1723856035080,0.00116885,59231.0,59230.0,0.44719]
[1723856036480,0.00016885,59231.0,59230.0,0.44719]
[1723856044387,0.11016885,59231.0,59230.0,0.44719]
[1723856045392,0.15796885,59231.0,59230.0,0.44719]
[1723856045784,0.04796885,59231.0,59230.0,0.44719]
[1723856046591,0.04796885,59231.0,59230.0,0.49703381]
[1723856046791,0.25796885,59231.0,59230.0,0.49603381]
[1723856046991,0.25796885,59231.0,59230.0,0.49703381]
[1723856047384,0.25796885,59231.0,59230.0,0.44719]
[1723856048288,0.25796885,59231.0,59230.0,0.4970874]
[1723856048482,0.25796885,59231.0,59230.0,0.49708696]
[1723856048682,0.25796885,59231.0,59230.0,0.44719]
[1723856048988,0.61876885,59231.0,59230.0,0.002]
[1723856050200,0.70315685,59231.0,59230.0,0.002]
[1723856050689,1.20963685,59231.0,59230.0,0.002]
[1723856050887,1.60963685,59231.0,59230.0,0.002]
[1723856052297,1.20963685,59231.0,59230.0,0.002]
[1723856052683,1.60963685,59231.0,59230.0,0.002]
[1723856052884,0.084397,59225.0,59220.0,0.05015106]
[1723856053086,0.0451,59224.0,59220.0,0.00025347]
[1723856053291,0.499498,59224.0,59220.0,0.00025347]
[1723856053890,0.0844,59223.0,59220.0,0.00025347]
[1723856054093,0.0844,59223.0,59220.0,0.00125347]
[1723856054094,0.2844,59223.0,59220.0,0.00125347]
[1723856054494,0.2844,59223.0,59220.0,0.01266541]
[1723856054686,0.2844,59223.0,59220.0,0.00125347]
[1723856054891,0.2844,59223.0,59220.0,0.00225347]
[1723856055294,0.2844,59223.0,59221.0,0.07431396]
[1723856055490,0.2,59223.0,59220.0,0.00225347]
[1723856055801,0.201,59223.0,59221.0,0.07431396]
[1723856055994,0.201,59223.0,59220.0,0.00225347]
[1723856056387,0.590961,59222.0,59221.0,0.001]
[1723856056710,0.35,59222.0,59210.0,0.04989759]
[1723856056892,0.08441,59216.0,59211.0,0.07432199]
[1723856057095,0.0932,59215.0,59212.0,0.03716105]
[1723856057396,0.3032,59215.0,59213.0,0.0743221]
[1723856057589,0.3032,59215.0,59214.0,0.0743221]
[1723856057792,0.387611,59215.0,59214.0,0.0743221]
[1723856058198,0.387611,59215.0,59214.0,0.03716105]
[1723856058890,0.387611,59215.0,59209.0,0.37203454]
[1723856058891,0.084417,59211.0,59209.0,0.37203454]
[1723856059085,0.0454,59210.0,59209.0,0.37203454]
[1723856059299,0.129818,59210.0,59209.0,0.37203454]
[1723856059498,0.128818,59210.0,59209.0,0.37203454]
[1723856059795,0.237818,59210.0,59209.0,0.3608]
[1723856060400,0.237818,59210.0,59209.0,0.3628]
[1723856060401,0.241818,59210.0,59209.0,0.3628]
[1723856061592,0.241818,59210.0,59209.0,0.002]
[1723856063093,0.602618,59210.0,59209.0,0.002]
[1723856063502,1.109298,59210.0,59209.0,0.002]
[1723856065093,1.509298,59210.0,59209.0,0.002]
[1723856065294,1.109298,59210.0,59209.0,0.002]
[1723856067000,1.02488,59210.0,59203.0,0.01169268]
[1723856067202,0.5182,59210.0,59200.0,0.3608]
[1723856067601,0.3608,59205.0,59199.0,0.084433]
[1723856067800,0.7208,59205.0,59199.0,0.084433]
[1723856069105,0.08443,59202.0,59199.0,0.084433]
[1723856069306,0.0924,59201.0,59200.0,0.003]
[1723856069609,0.3024,59201.0,59200.0,0.003]
[1723856069994,0.3024,59201.0,59199.0,0.091433]
[1723856070298,0.386831,59201.0,59199.0,0.007]
[1723856070503,0.386831,59201.0,59200.0,0.003]
[1723856072208,0.084432,59200.0,59199.0,0.007]
[1723856072513,0.414432,59200.0,59199.0,0.007]
[1723856072806,0.411432,59200.0,59199.0,0.003]
[1723856073002,0.411432,59200.0,59197.0,0.01172622]
[1723856073003,0.082434,59199.0,59197.0,0.01172622]
[1723856073305,0.3608,59216.0,59198.0,0.50676]
[1723856073510,0.0966,59220.0,59207.0,0.806022]
[1723856073699,0.0478,59219.0,59218.0,0.084407]
[1723856073906,0.0578,59219.0,59218.0,0.445207]
[1723856074099,0.0578,59219.0,59218.0,0.084407]
[1723856074409,0.01,59219.0,59218.0,0.445207]
[1723856075801,0.015,59219.0,59218.0,0.446207]
[1723856076209,0.025,59219.0,59218.0,0.447207]
[1723856079307,0.025,59219.0,59218.0,0.45883777]
[1723856080409,0.3858,59219.0,59218.0,0.002]
[1723856083213,0.025,59219.0,59218.0,0.002]
[1723856083509,0.109405,59219.0,59218.0,0.002]
[1723856087142,0.470205,59219.0,59218.0,0.002]
[1723856087816,0.084412,59214.0,59213.0,0.00025325]
[1723856088014,0.845212,59214.0,59213.0,0.00025325]
[1723856089219,0.855212,59214.0,59213.0,0.00225325]
[1723856089420,0.084415,59213.0,59209.0,0.01130669]
[1723856089614,0.463715,59213.0,59206.0,0.084424]
[1723856089822,0.132315,59212.0,59206.0,0.084424]
[1723856090013,0.084421,59208.0,59204.0,0.04989759]
[1723856090210,0.31,59208.0,59203.0,0.3608]
[1723856090413,0.3608,59206.0,59203.0,0.01160948]
[1723856090617,0.3608,59206.0,59201.0,0.084431]
[1723856091424,0.444225,59206.0,59201.0,0.084431]
[1723856092319,0.444225,59206.0,59201.0,0.086431]
[1723856092516,0.084425,59206.0,59201.0,0.086431]
[1723856092822,0.084426,59205.0,59201.0,0.09774685]
[1723856093024,0.084427,59204.0,59201.0,0.09674685]
[1723856093223,0.133227,59204.0,59201.0,0.09674685]
[1723856094020,0.133227,59204.0,59201.0,0.09574685]
[1723856094325,0.133227,59204.0,59201.0,0.09674685]
[1723856094819,0.243227,59204.0,59201.0,0.09674685]
[1723856095023,0.08443,59202.0,59201.0,0.01231585]
[1723856095247,0.08443,59202.0,59201.0,0.001]
[1723856096121,0.0488,59204.0,59203.0,0.084428]
[1723856097425,0.0488,59204.0,59200.0,0.00025325]
[1723856097426,0.0498,59204.0,59200.0,0.00025325]
[1723856097616,0.084431,59201.0,59200.0,0.00025325]
[1723856097817,0.0498,59204.0,59200.0,0.00025325]
[1723856098115,0.0498,59204.0,59200.0,0.08468425]
[1723856098116,0.2618,59204.0,59200.0,0.08468425]
[1723856098816,0.2598,59204.0,59200.0,0.08468425]
[1723856099011,0.084425,59205.0,59200.0,0.08468425]
[1723856099012,0.06714223,59210.0,59201.0,0.03716877]
[1723856099226,0.048,59209.0,59206.0,0.084423]
[1723856099422,0.48242,59209.0,59206.0,0.084423]
[1723856099621,0.084421,59208.0,59202.0,0.445229]
[1723856099819,0.264421,59208.0,59203.0,0.03716696]
[1723856100018,0.264421,59208.0,59204.0,0.03716696]
[1723856100218,0.264421,59208.0,59202.0,0.3608]
[1723856100425,0.264421,59208.0,59203.0,0.03716717]
[1723856100628,0.264421,59208.0,59204.0,0.03716717]
[1723856100927,0.264421,59208.0,59202.0,0.3608]
[1723856101131,0.264421,59208.0,59205.0,0.084425]
[1723856102129,0.264421,59208.0,59207.0,0.445222]
[1723856102130,0.18,59208.0,59207.0,0.445222]
[1723856102527,0.182,59208.0,59207.0,0.5195512]
[1723856102720,0.183,59208.0,59207.0,0.5195512]
[1723856102919,0.183,59208.0,59207.0,0.4823866]
[1723856103126,0.183,59208.0,59207.0,0.0371646]
[1723856103425,0.267421,59208.0,59202.0,0.3608]
[1723856103633,0.265421,59208.0,59203.0,0.03716501]
[1723856103826,0.265421,59208.0,59202.0,0.3608]
[1723856103827,0.274421,59208.0,59202.0,0.3608]
[1723856104022,0.274421,59208.0,59203.0,0.03716571]
[1723856104223,0.274421,59208.0,59202.0,0.3608]
[1723856104427,0.277421,59208.0,59203.0,0.03716572]
[1723856104622,0.277421,59208.0,59202.0,0.37211713]
[1723856104823,0.277421,59208.0,59203.0,0.03716558]
[1723856105023,0.193,59208.0,59206.0,0.084424]
[1723856105223,0.189,59208.0,59206.0,0.084424]
[1723856105428,0.00088,59223.0,59207.0,1.9002583]
[1723856105625,0.0479,59239.0,59222.0,1.0143]
[1723856105933,0.0479,59239.0,59235.0,0.084382]
[1723856106929,0.0539,59239.0,59235.0,0.084382]
[1723856108027,0.0619,59239.0,59235.0,0.085382]
[1723856108435,0.0559,59239.0,59235.0,0.085382]
[1723856108624,0.0559,59239.0,59235.0,0.086382]
[1723856108824,0.2459,59239.0,59235.0,0.086382]
[1723856111127,0.008,59239.0,59238.0,0.084378]
[1723856111421,0.008,59239.0,59238.0,0.445178]
[1723856112030,0.008,59239.0,59238.0,0.48231792]
[1723856112332,0.3608,59269.0,59239.0,0.5064]
[1723856112528,0.0946,59265.0,59258.0,0.08435]
[1723856112730,0.0946,59265.0,59257.0,0.3608]
[1723856112731,0.3608,59269.0,59257.0,0.3608]
[1723856113121,0.084339,59266.0,59257.0,0.445151]
[1723856113321,0.084339,59266.0,59257.0,0.3608]
[1723856113747,0.13474993,59261.0,59258.0,0.001]
[1723856113927,0.10823655,59260.0,59258.0,0.085309]
[1723856114127,0.10823655,59259.0,59258.0,0.085309]
[1723856114327,0.05992378,59259.0,59258.0,0.085309]
[1723856114537,0.05992378,59259.0,59258.0,0.086309]
[1723856114832,0.0599232,59259.0,59258.0,0.086309]
[1723856115233,0.17695691,59259.0,59258.0,0.085309]
[1723856115426,0.0609232,59259.0,59258.0,0.085349]
[1723856116231,0.0609232,59259.0,59258.0,0.086349]
[1723856117439,0.0609232,59259.0,59258.0,0.002]
[1723856117631,0.8017232,59259.0,59250.0,0.3608]
[1723856117829,0.8017232,59259.0,59242.0,0.3608]
[1723856117830,0.1098232,59258.0,59242.0,0.3608]
[1723856118135,0.1098232,59258.0,59243.0,0.084371]
[1723856118136,0.10009177,59246.0,59243.0,0.084371]
[1723856118435,0.02734486,59245.0,59243.0,0.084371]
[1723856118939,0.10009177,59247.0,59246.0,0.084367]
[1723856119139,0.10009177,59247.0,59246.0,0.445167]
[1723856119329,0.10009177,59247.0,59246.0,1.501527]
[1723856119529,0.10009177,59247.0,59246.0,1.101527]
[1723856119731,0.10009177,59247.0,59246.0,0.445167]
[1723856120527,0.00025325,59250.0,59246.0,0.3101254]
[1723856120528,0.02734856,59249.0,59246.0,0.3101254]
[1723856121629,0.02734856,59249.0,59247.0,0.084364]
[1723856122240,0.00025325,59250.0,59247.0,0.084364]
[1723856123633,0.002,59249.0,59247.0,0.084364]
[1723856124335,0.00125325,59250.0,59249.0,0.084363]
[1723856124537,0.01125325,59250.0,59249.0,0.084363]
[1723856124932,0.01125325,59250.0,59246.0,0.3101254]
[1723856125130,0.001,59249.0,59246.0,0.3101254]
[1723856125327,0.191,59249.0,59246.0,0.32163663]
[1723856125537,0.084365,59247.0,59246.0,0.01151123]
[1723856125736,0.084365,59247.0,59240.0,0.445175]
[1723856125941,0.084365,59247.0,59245.0,0.3608]
[1723856126841,0.001,59249.0,59247.0,0.084365]
[1723856127041,0.201,59249.0,59247.0,0.084365]
[1723856127339,0.199,59249.0,59247.0,0.084365]
[1723856128236,0.2,59249.0,59247.0,0.084365]
[1723856128636,0.2,59249.0,59248.0,0.084364]
[1723856128832,0.199,59249.0,59248.0,0.084364]
[1723856129033,0.2,59249.0,59248.0,0.084364]
[1723856130434,0.201,59249.0,59248.0,0.084364]
[1723856131140,0.199,59249.0,59248.0,0.084364]
[1723856131342,0.202,59249.0,59248.0,0.085364]
[1723856131947,0.286363,59249.0,59233.0,0.3608]
[1723856132144,0.083374,59241.0,59238.0,0.01175821]
[1723856132450,0.0949,59240.0,59238.0,0.00025325]
[1723856132637,0.2349,59240.0,59238.0,0.00025325]
[1723856132836,0.084377,59239.0,59238.0,0.00025325]
[1723856133047,0.434377,59239.0,59238.0,0.00025325]
[1723856133250,0.35004,59239.0,59238.0,0.00025325]
[1723856133948,0.433417,59239.0,59238.0,0.00025325]
[1723856134149,0.432417,59239.0,59238.0,0.00025325]
[1723856134533,0.432417,59239.0,59238.0,0.00325325]
[1723856134947,0.432417,59239.0,59238.0,0.00525325]
[1723856135240,0.432417,59239.0,59238.0,0.00325325]
[1723856135833,0.432417,59239.0,59238.0,0.00225325]
[1723856136033,0.34804,59239.0,59238.0,0.00225325]
[1723856136642,0.34804,59239.0,59238.0,0.00025325]
[1723856136844,0.35104,59239.0,59238.0,0.00025325]
[1723856137053,0.35104,59239.0,59238.0,0.44543125]
[1723856137236,0.35104,59239.0,59238.0,1.51187125]
[1723856137444,0.35104,59239.0,59238.0,1.58978285]
[1723856137445,4e-05,59239.0,59238.0,1.58978285]